[Event "Titled Tuesday Blitz July 4 Early 2023"]
[White "Dardha, Daniel"]
[Black "Koellner, Ruben Gideon"]
[WhiteFideId "240990"]
[BlackFideId "12993093"]
[WhiteElo "2902"]
[BlackElo "2667"]
[Result "1-0"]
[Round "5"]
[TimeControl "180+2"]
[Date "2023.07.04"]
[WhiteClock "0:00:17"]
[BlackClock "0:00:00"]
[Board "31"]

1. d4 {[%clk 0:02:59]}  d6 {[%clk 0:02:52]} 2. Bg5 {[%clk 0:02:59]}  Nd7 {[%clk 0:02:48]} 3. Nc3 {[%clk 0:02:55]}  Ngf6 {[%clk 0:02:40]} 4. e4 {[%clk 0:02:55]}  e5 {[%clk 0:02:38]} 5. Bc4 {[%clk 0:02:50]}  Be7 {[%clk 0:02:38]} 6. Nf3 {[%clk 0:02:48]}  h6 {[%clk 0:02:37]} 7. Be3 {[%clk 0:02:44]}  c6 {[%clk 0:02:37]} 8. a4 {[%clk 0:02:40]}  Qc7 {[%clk 0:02:36]} 9. h3 {[%clk 0:02:40]}  Nf8 {[%clk 0:02:35]} 10. a5 {[%clk 0:02:37]}  Ng6 {[%clk 0:02:26]} 11. O-O {[%clk 0:02:34]}  O-O {[%clk 0:02:23]} 12. d5 {[%clk 0:02:30]}  cxd5 {[%clk 0:02:17]} 13. Bxd5 {[%clk 0:02:30]}  Be6 {[%clk 0:02:11]} 14. Bxe6 {[%clk 0:02:08]}  fxe6 {[%clk 0:02:12]} 15. a6 {[%clk 0:02:05]}  bxa6 {[%clk 0:02:10]} 16. Rxa6 {[%clk 0:02:06]}  Qb7 {[%clk 0:02:10]} 17. Qd3 {[%clk 0:01:57]}  Rfc8 {[%clk 0:02:00]} 18. Ra2 {[%clk 0:01:47]}  a5 {[%clk 0:01:34]} 19. Rfa1 {[%clk 0:01:45]}  Kh7 {[%clk 0:01:27]} 20. b3 {[%clk 0:01:39]}  Qc7 {[%clk 0:01:17]} 21. Nb5 {[%clk 0:01:27]}  Qc6 {[%clk 0:01:17]} 22. Na7 {[%clk 0:01:25]}  Qxe4 {[%clk 0:01:02]} 23. Nxc8 {[%clk 0:01:17]}  Rxc8 {[%clk 0:01:02]} 24. Qxe4 {[%clk 0:01:14]}  Nxe4 {[%clk 0:01:03]} 25. c4 {[%clk 0:01:14]}  Bd8 {[%clk 0:01:00]} 26. Nd2 {[%clk 0:01:13]}  Nf6 {[%clk 0:00:54]} 27. Nb1 {[%clk 0:01:10]}  Rb8 {[%clk 0:00:54]} 28. Ra3 {[%clk 0:01:08]}  d5 {[%clk 0:00:54]} 29. Bd2 {[%clk 0:01:01]}  Ne4 {[%clk 0:00:44]} 30. Bxa5 {[%clk 0:00:59]}  Bxa5 {[%clk 0:00:41]} 31. Rxa5 {[%clk 0:01:00]}  Rxb3 {[%clk 0:00:41]} 32. cxd5 {[%clk 0:00:59]}  exd5 {[%clk 0:00:39]} 33. Rxd5 {[%clk 0:01:00]}  Rb2 {[%clk 0:00:32]} 34. f3 {[%clk 0:00:49]}  Ng3 {[%clk 0:00:22]} 35. Rd2 {[%clk 0:00:48]}  Rb3 {[%clk 0:00:17]} 36. Na3 {[%clk 0:00:47]}  e4 {[%clk 0:00:15]} 37. fxe4 {[%clk 0:00:45]}  Nxe4 {[%clk 0:00:16]} 38. Rc2 {[%clk 0:00:42]}  Nf6 {[%clk 0:00:11]} 39. Nc4 {[%clk 0:00:42]}  Rb7 {[%clk 0:00:11]} 40. Re1 {[%clk 0:00:41]}  Rc7 {[%clk 0:00:11]} 41. Ne3 {[%clk 0:00:42]}  Re7 {[%clk 0:00:10]} 42. Rcc1 {[%clk 0:00:41]}  Nf4 {[%clk 0:00:09]} 43. Nf5 {[%clk 0:00:35]}  Ra7 {[%clk 0:00:09]} 44. Rc4 {[%clk 0:00:32]}  N4d5 {[%clk 0:00:08]} 45. Rd4 {[%clk 0:00:28]}  Kg6 {[%clk 0:00:08]} 46. Nh4+ {[%clk 0:00:27]}  Kf7 {[%clk 0:00:07]} 47. Nf3 {[%clk 0:00:28]}  Ne7 {[%clk 0:00:06]} 48. Ne5+ {[%clk 0:00:28]}  Kg8 {[%clk 0:00:07]} 49. Rc4 {[%clk 0:00:25]}  Kh7 {[%clk 0:00:07]} 50. Nc6 {[%clk 0:00:24]}  Nxc6 {[%clk 0:00:07]} 51. Rxc6 {[%clk 0:00:25]}  Kg6 {[%clk 0:00:07]} 52. Rf1 {[%clk 0:00:24]}  Rf7 {[%clk 0:00:07]} 53. Rc3 {[%clk 0:00:22]}  Rd7 {[%clk 0:00:07]} 54. Rg3+ {[%clk 0:00:21]}  Kh7 {[%clk 0:00:07]} 55. Rgf3 {[%clk 0:00:21]}  Kg6 {[%clk 0:00:07]} 56. Kh2 {[%clk 0:00:21]}  Ra7 {[%clk 0:00:07]} 57. Rb3 {[%clk 0:00:21]}  Rc7 {[%clk 0:00:07]} 58. Rfb1 {[%clk 0:00:21]}  Ra7 {[%clk 0:00:07]} 59. Rb7 {[%clk 0:00:21]}  Rxb7 {[%clk 0:00:03]} 60. Rxb7 {[%clk 0:00:21]}  Nh7 {[%clk 0:00:04]} 61. g4 {[%clk 0:00:21]}  Kf6 {[%clk 0:00:02]} 62. Rb6+ {[%clk 0:00:21]}  Kf7 {[%clk 0:00:02]} 63. Kg3 {[%clk 0:00:22]}  Nf8 {[%clk 0:00:02]} 64. Ra6 {[%clk 0:00:22]}  Ne6 {[%clk 0:00:03]} 65. h4 {[%clk 0:00:21]}  g6 {[%clk 0:00:03]} 66. Ra7+ {[%clk 0:00:20]}  Kg8 {[%clk 0:00:03]} 67. Kf3 {[%clk 0:00:19]}  Ng7 {[%clk 0:00:02]} 68. Kf4 {[%clk 0:00:18]}  h5 {[%clk 0:00:02]} 69. gxh5 {[%clk 0:00:16]}  gxh5 {[%clk 0:00:01]} 70. Kg5 {[%clk 0:00:17]}  Kf8 {[%clk 0:00:01]} 71. Kf6 {[%clk 0:00:15]}  Ne8+ {[%clk 0:00:02]} 72. Kg6 {[%clk 0:00:16]}  Nd6 {[%clk 0:00:02]} 73. Kxh5 {[%clk 0:00:16]}  Kg8 {[%clk 0:00:02]} 74. Kg6 {[%clk 0:00:16]}  Kf8 {[%clk 0:00:01]} 75. Ra8+ {[%clk 0:00:16]}  Ke7 {[%clk 0:00:01]} 76. h5 {[%clk 0:00:17]}  Ke6 {[%clk 0:00:00]} 77. h6 {[%clk 0:00:17]} 1-0


[Site "https://www.chess.com"]

[Event "Titled Tuesday Blitz July 4 Early 2023"]
[White "Aravindh, Chithambaram VR."]
[Black "Guerra Tulcan, Lenin"]
[WhiteFideId "5072786"]
[BlackFideId "3601382"]
[WhiteElo "2897"]
[BlackElo "2654"]
[Result "1-0"]
[Round "5"]
[TimeControl "180+2"]
[Date "2023.07.04"]
[WhiteClock "0:00:08"]
[BlackClock "0:00:09"]
[Board "32"]

1. d4 {[%clk 0:03:00]}  Nf6 {[%clk 0:03:00]} 2. Nf3 {[%clk 0:02:58]}  c5 {[%clk 0:03:00]} 3. d5 {[%clk 0:02:58]}  d6 {[%clk 0:03:00]} 4. Nc3 {[%clk 0:02:57]}  g6 {[%clk 0:03:00]} 5. g3 {[%clk 0:02:57]}  Bg7 {[%clk 0:03:00]} 6. Bg2 {[%clk 0:02:58]}  O-O {[%clk 0:03:00]} 7. O-O {[%clk 0:02:58]}  b6 {[%clk 0:03:01]} 8. a4 {[%clk 0:02:58]}  Bb7 {[%clk 0:03:01]} 9. e4 {[%clk 0:02:58]}  a6 {[%clk 0:03:01]} 10. Nd2 {[%clk 0:02:53]}  Nbd7 {[%clk 0:03:01]} 11. Nc4 {[%clk 0:02:52]}  Qc7 {[%clk 0:02:43]} 12. Bf4 {[%clk 0:02:44]}  Ne5 {[%clk 0:02:39]} 13. Bxe5 {[%clk 0:02:26]}  dxe5 {[%clk 0:02:40]} 14. d6 {[%clk 0:02:24]}  exd6 {[%clk 0:02:38]} 15. Qxd6 {[%clk 0:02:25]}  Qxd6 {[%clk 0:02:30]} 16. Nxd6 {[%clk 0:02:26]}  Bc6 {[%clk 0:02:30]} 17. Rfd1 {[%clk 0:02:26]}  Rfb8 {[%clk 0:02:01]} 18. Nc4 {[%clk 0:02:14]}  Ne8 {[%clk 0:01:59]} 19. Bh3 {[%clk 0:02:08]}  Bf6 {[%clk 0:01:17]} 20. Bd7 {[%clk 0:02:03]}  Bxd7 {[%clk 0:01:17]} 21. Rxd7 {[%clk 0:02:04]}  b5 {[%clk 0:01:10]} 22. axb5 {[%clk 0:02:01]}  axb5 {[%clk 0:01:11]} 23. Rxa8 {[%clk 0:02:00]}  Rxa8 {[%clk 0:01:12]} 24. Nxb5 {[%clk 0:02:01]}  Ra1+ {[%clk 0:01:02]} 25. Kg2 {[%clk 0:01:59]}  Rc1 {[%clk 0:01:02]} 26. Rd2 {[%clk 0:00:53]}  Kf8 {[%clk 0:00:52]} 27. c3 {[%clk 0:00:37]}  h5 {[%clk 0:00:51]} 28. h4 {[%clk 0:00:37]}  Re1 {[%clk 0:00:46]} 29. Rd7 {[%clk 0:00:33]}  Be7 {[%clk 0:00:30]} 30. Nxe5 {[%clk 0:00:30]}  Rxe4 {[%clk 0:00:29]} 31. Nc6 {[%clk 0:00:30]}  Bf6 {[%clk 0:00:25]} 32. Nd8 {[%clk 0:00:20]}  Re7 {[%clk 0:00:15]} 33. Rd5 {[%clk 0:00:14]}  Re2 {[%clk 0:00:14]} 34. Nc6 {[%clk 0:00:10]}  Rxb2 {[%clk 0:00:12]} 35. Rxc5 {[%clk 0:00:10]}  Ng7 {[%clk 0:00:10]} 36. Ncd4 {[%clk 0:00:09]}  Bxd4 {[%clk 0:00:09]} 37. Nxd4 {[%clk 0:00:10]}  Ne6 {[%clk 0:00:08]} 38. Nxe6+ {[%clk 0:00:10]}  fxe6 {[%clk 0:00:09]} 39. Rc7 {[%clk 0:00:10]}  Rc2 {[%clk 0:00:08]} 40. Kf3 {[%clk 0:00:11]}  Kg8 {[%clk 0:00:08]} 41. Ke3 {[%clk 0:00:10]}  Kf8 {[%clk 0:00:08]} 42. c4 {[%clk 0:00:08]}  Kg8 {[%clk 0:00:07]} 43. c5 {[%clk 0:00:09]}  Kf8 {[%clk 0:00:07]} 44. c6 {[%clk 0:00:09]}  Rc4 {[%clk 0:00:06]} 45. Kd3 {[%clk 0:00:07]}  Rc1 {[%clk 0:00:07]} 46. Kd4 {[%clk 0:00:07]}  Ke8 {[%clk 0:00:07]} 47. Ke5 {[%clk 0:00:07]}  Re1+ {[%clk 0:00:07]} 48. Kf6 {[%clk 0:00:07]}  Kd8 {[%clk 0:00:06]} 49. Rd7+ {[%clk 0:00:07]}  Kc8 {[%clk 0:00:06]} 50. Kxg6 {[%clk 0:00:07]}  Re2 {[%clk 0:00:06]} 51. Rf7 {[%clk 0:00:08]}  e5 {[%clk 0:00:06]} 52. Kxh5 {[%clk 0:00:08]}  e4 {[%clk 0:00:06]} 53. Kg6 {[%clk 0:00:08]}  e3 {[%clk 0:00:07]} 54. fxe3 {[%clk 0:00:09]}  Rxe3 {[%clk 0:00:07]} 55. g4 {[%clk 0:00:09]}  Re6+ {[%clk 0:00:08]} 56. Rf6 {[%clk 0:00:09]}  Re4 {[%clk 0:00:09]} 57. Kg5 {[%clk 0:00:07]}  Re5+ {[%clk 0:00:09]} 58. Rf5 {[%clk 0:00:07]}  Re6 {[%clk 0:00:10]} 59. h5 {[%clk 0:00:08]}  Kc7 {[%clk 0:00:10]} 60. h6 {[%clk 0:00:08]}  Rxc6 {[%clk 0:00:09]} 61. h7 {[%clk 0:00:08]} 1-0


[Site "https://www.chess.com"]

[Event "Titled Tuesday Blitz July 4 Early 2023"]
[White "Bacrot, Etienne"]
[Black "Taspinar, Yanki"]
[WhiteFideId "605506"]
[BlackFideId "34561188"]
[WhiteElo "2863"]
[BlackElo "2654"]
[Result "0-1"]
[Round "5"]
[TimeControl "180+2"]
[Date "2023.07.04"]
[WhiteClock "0:01:06"]
[BlackClock "0:01:07"]
[Board "33"]

1. e4 {[%clk 0:02:58]}  e6 {[%clk 0:02:59]} 2. Nf3 {[%clk 0:02:56]}  c5 {[%clk 0:02:57]} 3. b3 {[%clk 0:02:55]}  Nf6 {[%clk 0:02:54]} 4. e5 {[%clk 0:02:54]}  Nd5 {[%clk 0:02:54]} 5. Bb2 {[%clk 0:02:55]}  Be7 {[%clk 0:02:53]} 6. Nc3 {[%clk 0:02:54]}  O-O {[%clk 0:02:44]} 7. Nxd5 {[%clk 0:02:54]}  exd5 {[%clk 0:02:44]} 8. d4 {[%clk 0:02:54]}  d6 {[%clk 0:02:43]} 9. Bd3 {[%clk 0:02:43]}  dxe5 {[%clk 0:02:36]} 10. Nxe5 {[%clk 0:02:42]}  Bf6 {[%clk 0:02:28]} 11. O-O {[%clk 0:02:38]}  cxd4 {[%clk 0:02:29]} 12. Bxd4 {[%clk 0:02:36]}  Nc6 {[%clk 0:02:29]} 13. Nxc6 {[%clk 0:02:23]}  bxc6 {[%clk 0:02:30]} 14. Bxf6 {[%clk 0:02:13]}  Qxf6 {[%clk 0:02:31]} 15. Re1 {[%clk 0:02:14]}  Be6 {[%clk 0:02:27]} 16. Qd2 {[%clk 0:02:08]}  Rfe8 {[%clk 0:02:08]} 17. Qa5 {[%clk 0:02:05]}  Qg5 {[%clk 0:01:56]} 18. Re3 {[%clk 0:01:49]}  Bf5 {[%clk 0:01:32]} 19. Qxa7 {[%clk 0:01:43]}  Be4 {[%clk 0:01:09]} 20. Bxe4 {[%clk 0:01:13]}  Rxa7 {[%clk 0:01:06]} 21. Bxh7+ {[%clk 0:01:13]}  Kxh7 {[%clk 0:01:07]} 22. Rxe8 {[%clk 0:01:06]}  Rxa2 {[%clk 0:01:07]} 0-1


[Site "https://www.chess.com"]

[Event "Titled Tuesday Blitz July 4 Early 2023"]
[White "Molina, Roberto Junio Brito"]
[Black "Tan, Jun Ying"]
[WhiteFideId "2109450"]
[BlackFideId "5710413"]
[WhiteElo "2862"]
[BlackElo "2654"]
[Result "1-0"]
[Round "5"]
[TimeControl "180+2"]
[Date "2023.07.04"]
[WhiteClock "0:00:28"]
[BlackClock "0:00:00"]
[Board "34"]

1. d4 {[%clk 0:03:00]}  d5 {[%clk 0:02:59]} 2. Nf3 {[%clk 0:02:54]}  c6 {[%clk 0:02:59]} 3. e3 {[%clk 0:02:53]}  Nf6 {[%clk 0:02:57]} 4. Be2 {[%clk 0:02:53]}  Bf5 {[%clk 0:02:56]} 5. O-O {[%clk 0:02:54]}  h6 {[%clk 0:02:56]} 6. b3 {[%clk 0:02:52]}  e6 {[%clk 0:02:56]} 7. Bd3 {[%clk 0:02:52]}  Ne4 {[%clk 0:02:47]} 8. Ne5 {[%clk 0:02:47]}  Nd7 {[%clk 0:02:09]} 9. Nxd7 {[%clk 0:02:43]}  Qxd7 {[%clk 0:02:08]} 10. f3 {[%clk 0:02:41]}  Nd6 {[%clk 0:02:04]} 11. Bxf5 {[%clk 0:02:41]}  Nxf5 {[%clk 0:02:04]} 12. Qd3 {[%clk 0:02:40]}  Bd6 {[%clk 0:02:00]} 13. Nd2 {[%clk 0:02:31]}  Qc7 {[%clk 0:01:57]} 14. f4 {[%clk 0:02:31]}  g5 {[%clk 0:01:49]} 15. g3 {[%clk 0:02:29]}  h5 {[%clk 0:01:34]} 16. Nf3 {[%clk 0:02:28]}  h4 {[%clk 0:01:29]} 17. g4 {[%clk 0:02:25]}  Ng7 {[%clk 0:01:01]} 18. Nxg5 {[%clk 0:02:20]}  O-O-O {[%clk 0:01:02]} 19. h3 {[%clk 0:02:18]}  f6 {[%clk 0:01:02]} 20. Nf3 {[%clk 0:02:18]}  Rdg8 {[%clk 0:00:58]} 21. Kh1 {[%clk 0:02:13]}  f5 {[%clk 0:00:58]} 22. Rg1 {[%clk 0:02:07]}  fxg4 {[%clk 0:00:57]} 23. hxg4 {[%clk 0:02:06]}  h3 {[%clk 0:00:53]} 24. Bd2 {[%clk 0:02:05]}  h2 {[%clk 0:00:52]} 25. Rg2 {[%clk 0:02:04]}  Nf5 {[%clk 0:00:46]} 26. gxf5 {[%clk 0:01:55]}  Rxg2 {[%clk 0:00:47]} 27. Kxg2 {[%clk 0:01:56]}  Qh7 {[%clk 0:00:36]} 28. Kh1 {[%clk 0:01:52]}  Qh3 {[%clk 0:00:30]} 29. Ng5 {[%clk 0:01:23]}  Qg3 {[%clk 0:00:17]} 30. Qe2 {[%clk 0:01:21]}  exf5 {[%clk 0:00:12]} 31. Qg2 {[%clk 0:01:14]}  Qh4 {[%clk 0:00:13]} 32. Nf7 {[%clk 0:01:11]}  Rh7 {[%clk 0:00:04]} 33. Nxd6+ {[%clk 0:01:10]}  Kd7 {[%clk 0:00:04]} 34. Nxf5 {[%clk 0:01:10]}  Qh5 {[%clk 0:00:04]} 35. Ng3 {[%clk 0:01:03]}  Qg4 {[%clk 0:00:05]} 36. Rf1 {[%clk 0:00:52]}  Rh3 {[%clk 0:00:05]} 37. Be1 {[%clk 0:00:51]}  Rh8 {[%clk 0:00:03]} 38. Bf2 {[%clk 0:00:48]}  Qg6 {[%clk 0:00:02]} 39. f5 {[%clk 0:00:48]}  Qg4 {[%clk 0:00:03]} 40. e4 {[%clk 0:00:48]}  Qf4 {[%clk 0:00:01]} 41. exd5 {[%clk 0:00:45]}  Qd2 {[%clk 0:00:01]} 42. dxc6+ {[%clk 0:00:45]}  bxc6 {[%clk 0:00:02]} 43. Ne4 {[%clk 0:00:40]}  Qxc2 {[%clk 0:00:02]} 44. Nc5+ {[%clk 0:00:39]}  Kc7 {[%clk 0:00:02]} 45. Bg3+ {[%clk 0:00:39]}  Kb6 {[%clk 0:00:01]} 46. Na4+ {[%clk 0:00:36]}  Ka5 {[%clk 0:00:01]} 47. Be1+ {[%clk 0:00:32]}  Ka6 {[%clk 0:00:01]} 48. Qxc2 {[%clk 0:00:31]}  Kb7 {[%clk 0:00:00]} 49. Qxh2 {[%clk 0:00:28]} 1-0


[Site "https://www.chess.com"]

[Event "Titled Tuesday Blitz July 4 Early 2023"]
[White "Pap, Gyula"]
[Black "Ahmad, Khagan"]
[WhiteFideId "725323"]
[BlackFideId "13431552"]
[WhiteElo "2856"]
[BlackElo "2648"]
[Result "0-1"]
[Round "5"]
[TimeControl "180+2"]
[Date "2023.07.04"]
[WhiteClock "0:00:01"]
[BlackClock "0:00:04"]
[Board "36"]

1. d4 {[%clk 0:03:00]}  Nf6 {[%clk 0:02:57]} 2. c4 {[%clk 0:03:01]}  e6 {[%clk 0:02:58]} 3. Nc3 {[%clk 0:03:02]}  Bb4 {[%clk 0:02:56]} 4. Qb3 {[%clk 0:03:02]}  c5 {[%clk 0:02:50]} 5. dxc5 {[%clk 0:03:02]}  Bxc5 {[%clk 0:02:49]} 6. Nf3 {[%clk 0:03:03]}  O-O {[%clk 0:02:48]} 7. Bg5 {[%clk 0:03:03]}  Nc6 {[%clk 0:02:37]} 8. e3 {[%clk 0:03:04]}  h6 {[%clk 0:02:34]} 9. Bh4 {[%clk 0:03:03]}  Be7 {[%clk 0:02:29]} 10. Be2 {[%clk 0:03:04]}  d5 {[%clk 0:02:25]} 11. cxd5 {[%clk 0:03:02]}  Nxd5 {[%clk 0:02:25]} 12. Bxe7 {[%clk 0:03:02]}  Ncxe7 {[%clk 0:02:23]} 13. Nxd5 {[%clk 0:02:57]}  Nxd5 {[%clk 0:02:23]} 14. O-O {[%clk 0:02:58]}  b6 {[%clk 0:02:19]} 15. Rfd1 {[%clk 0:02:57]}  Qe7 {[%clk 0:02:15]} 16. Ne5 {[%clk 0:02:44]}  Bb7 {[%clk 0:02:12]} 17. Bf3 {[%clk 0:02:33]}  Rfd8 {[%clk 0:02:07]} 18. a4 {[%clk 0:02:31]}  Qf6 {[%clk 0:01:43]} 19. Nc4 {[%clk 0:02:28]}  Rac8 {[%clk 0:00:48]} 20. a5 {[%clk 0:02:28]}  Ba6 {[%clk 0:00:45]} 21. Rd4 {[%clk 0:02:28]}  Bxc4 {[%clk 0:00:43]} 22. Rxc4 {[%clk 0:02:29]}  Rxc4 {[%clk 0:00:43]} 23. Qxc4 {[%clk 0:02:30]}  Qxb2 {[%clk 0:00:44]} 24. Qf1 {[%clk 0:02:16]}  b5 {[%clk 0:00:39]} 25. Rb1 {[%clk 0:02:15]}  Qd2 {[%clk 0:00:33]} 26. Rxb5 {[%clk 0:02:06]}  Nc3 {[%clk 0:00:33]} 27. Rb7 {[%clk 0:02:05]}  a6 {[%clk 0:00:27]} 28. Qxa6 {[%clk 0:01:43]}  Na4 {[%clk 0:00:17]} 29. Rb1 {[%clk 0:01:33]}  Nc5 {[%clk 0:00:13]} 30. Qb6 {[%clk 0:01:27]}  Na4 {[%clk 0:00:07]} 31. Qb4 {[%clk 0:01:16]}  Nc3 {[%clk 0:00:06]} 32. a6 {[%clk 0:00:54]}  Nxb1 {[%clk 0:00:06]} 33. Qxb1 {[%clk 0:00:55]}  Qa5 {[%clk 0:00:04]} 34. Be2 {[%clk 0:00:29]}  Ra8 {[%clk 0:00:04]} 35. Qb7 {[%clk 0:00:23]}  Rd8 {[%clk 0:00:04]} 36. a7 {[%clk 0:00:08]}  Rd1+ {[%clk 0:00:04]} 37. Bf1 {[%clk 0:00:09]}  Ra1 {[%clk 0:00:05]} 38. Qc8+ {[%clk 0:00:07]}  Kh7 {[%clk 0:00:06]} 39. Qc2+ {[%clk 0:00:08]}  g6 {[%clk 0:00:06]} 40. g3 {[%clk 0:00:07]}  Qxa7 {[%clk 0:00:06]} 41. Qe2 {[%clk 0:00:06]}  Qa8 {[%clk 0:00:05]} 42. h4 {[%clk 0:00:06]}  h5 {[%clk 0:00:06]} 43. Kh2 {[%clk 0:00:06]}  Ra2 {[%clk 0:00:06]} 44. Qe1 {[%clk 0:00:06]}  Qf3 {[%clk 0:00:06]} 45. Kg1 {[%clk 0:00:07]}  Kg7 {[%clk 0:00:05]} 46. Bg2 {[%clk 0:00:07]}  Qe2 {[%clk 0:00:05]} 47. Qc3+ {[%clk 0:00:06]}  Kh7 {[%clk 0:00:05]} 48. Qf6 {[%clk 0:00:06]}  Kg8 {[%clk 0:00:06]} 49. Qd8+ {[%clk 0:00:05]}  Kg7 {[%clk 0:00:05]} 50. Qd4+ {[%clk 0:00:06]}  Kh7 {[%clk 0:00:05]} 51. Qf6 {[%clk 0:00:06]}  Qe1+ {[%clk 0:00:05]} 52. Bf1 {[%clk 0:00:06]}  Ra7 {[%clk 0:00:05]} 53. Kg2 {[%clk 0:00:06]}  Qa5 {[%clk 0:00:06]} 54. Be2 {[%clk 0:00:03]}  Qf5 {[%clk 0:00:05]} 55. Qb2 {[%clk 0:00:03]}  Rd7 {[%clk 0:00:04]} 56. Bf3 {[%clk 0:00:04]}  Qd3 {[%clk 0:00:03]} 57. Bc6 {[%clk 0:00:02]}  Rc7 {[%clk 0:00:03]} 58. Bf3 {[%clk 0:00:03]}  Qf5 {[%clk 0:00:03]} 59. Qe2 {[%clk 0:00:02]}  e5 {[%clk 0:00:04]} 60. Bd5 {[%clk 0:00:01]}  Qf6 {[%clk 0:00:04]} 61. Be4 {[%clk 0:00:01]}  Kg7 {[%clk 0:00:05]} 62. Qd3 {[%clk 0:00:02]}  Ra7 {[%clk 0:00:06]} 63. Qc4 {[%clk 0:00:02]}  Ra1 {[%clk 0:00:05]} 64. Bc2 {[%clk 0:00:02]}  Rc1 {[%clk 0:00:05]} 65. Qd3 {[%clk 0:00:02]}  Qc6+ {[%clk 0:00:05]} 66. Qe4 {[%clk 0:00:01]}  Rxc2 {[%clk 0:00:04]} 0-1


[Site "https://www.chess.com"]

[Event "Titled Tuesday Blitz July 4 Early 2023"]
[White "Jaskolka, Tomasz"]
[Black "Beerdsen, Thomas"]
[WhiteFideId "1170791"]
[BlackFideId "1030108"]
[WhiteElo "2619"]
[BlackElo "2832"]
[Result "0-1"]
[Round "5"]
[TimeControl "180+2"]
[Date "2023.07.04"]
[WhiteClock "0:00:04"]
[BlackClock "0:00:46"]
[Board "39"]

1. d4 {[%clk 0:02:52]}  Nf6 {[%clk 0:02:59]} 2. Nc3 {[%clk 0:02:52]}  e6 {[%clk 0:02:58]} 3. Bf4 {[%clk 0:02:49]}  Bb4 {[%clk 0:02:57]} 4. e3 {[%clk 0:02:46]}  c5 {[%clk 0:02:57]} 5. Nf3 {[%clk 0:02:43]}  Nd5 {[%clk 0:02:55]} 6. Qd2 {[%clk 0:02:31]}  Qa5 {[%clk 0:02:52]} 7. a3 {[%clk 0:01:17]}  Nxc3 {[%clk 0:02:45]} 8. Rc1 {[%clk 0:01:14]}  Ne4 {[%clk 0:02:42]} 9. axb4 {[%clk 0:01:13]}  cxb4 {[%clk 0:02:43]} 10. Qd3 {[%clk 0:01:10]}  d5 {[%clk 0:02:43]} 11. Be2 {[%clk 0:01:10]}  O-O {[%clk 0:02:43]} 12. O-O {[%clk 0:01:10]}  Nc6 {[%clk 0:02:43]} 13. Nd2 {[%clk 0:01:07]}  Nxd2 {[%clk 0:02:36]} 14. Qxd2 {[%clk 0:01:07]}  Bd7 {[%clk 0:02:34]} 15. Bd3 {[%clk 0:01:05]}  Rfe8 {[%clk 0:02:30]} 16. Qe2 {[%clk 0:01:04]}  e5 {[%clk 0:02:05]} 17. dxe5 {[%clk 0:00:58]}  Nxe5 {[%clk 0:02:06]} 18. Bxh7+ {[%clk 0:00:55]}  Kxh7 {[%clk 0:02:06]} 19. Qh5+ {[%clk 0:00:55]}  Kg8 {[%clk 0:02:07]} 20. Bxe5 {[%clk 0:00:55]}  d4 {[%clk 0:02:08]} 21. exd4 {[%clk 0:00:44]}  f6 {[%clk 0:02:09]} 22. f4 {[%clk 0:00:33]}  fxe5 {[%clk 0:02:05]} 23. fxe5 {[%clk 0:00:33]}  Qd5 {[%clk 0:02:05]} 24. c3 {[%clk 0:00:30]}  Bc6 {[%clk 0:02:03]} 25. Rc2 {[%clk 0:00:28]}  bxc3 {[%clk 0:02:02]} 26. bxc3 {[%clk 0:00:28]}  Rf8 {[%clk 0:01:53]} 27. Re1 {[%clk 0:00:28]}  Rf4 {[%clk 0:01:46]} 28. Qg5 {[%clk 0:00:15]}  Raf8 {[%clk 0:01:46]} 29. h4 {[%clk 0:00:15]}  Qe6 {[%clk 0:01:42]} 30. h5 {[%clk 0:00:10]}  Rg4 {[%clk 0:01:42]} 31. Qe3 {[%clk 0:00:09]}  Qd5 {[%clk 0:01:36]} 32. Qh3 {[%clk 0:00:09]}  Rg5 {[%clk 0:01:34]} 33. h6 {[%clk 0:00:09]}  gxh6 {[%clk 0:01:35]} 34. Re3 {[%clk 0:00:06]}  Kh7 {[%clk 0:01:31]} 35. Rg3 {[%clk 0:00:06]}  Rxg3 {[%clk 0:01:26]} 36. Qxg3 {[%clk 0:00:06]}  Rg8 {[%clk 0:01:26]} 37. Qh3 {[%clk 0:00:07]}  a5 {[%clk 0:01:21]} 38. Rf2 {[%clk 0:00:07]}  a4 {[%clk 0:01:14]} 39. Qf5+ {[%clk 0:00:05]}  Rg6 {[%clk 0:01:14]} 40. c4 {[%clk 0:00:03]}  Qxc4 {[%clk 0:00:53]} 41. e6 {[%clk 0:00:02]}  Qxe6 {[%clk 0:00:52]} 42. Qf8 {[%clk 0:00:01]}  Qe1+ {[%clk 0:00:44]} 43. Kh2 {[%clk 0:00:01]}  Qxf2 {[%clk 0:00:45]} 44. Qxf2 {[%clk 0:00:01]}  Rxg2+ {[%clk 0:00:46]} 45. Qxg2 {[%clk 0:00:02]}  Bxg2 {[%clk 0:00:46]} 46. Kxg2 {[%clk 0:00:03]}  a3 {[%clk 0:00:46]} 47. d5 {[%clk 0:00:03]}  a2 {[%clk 0:00:46]} 48. d6 {[%clk 0:00:04]} 0-1


[Site "https://www.chess.com"]